bitfinex/quotes_BTCUSD_20250714
["timestamp","ask_amount","ask_price","bid_price","bid_amount"]
[1752522854136,0.0337,119990.0,119980.0,0.74116487]
[1752522854566,0.0337,119990.0,119980.0,0.61604487]
[1752522854792,0.0337,119990.0,119980.0,0.74316487]
[1752522855867,0.0337,119990.0,119980.0,0.61604487]
[1752522856076,0.0337,119990.0,119980.0,0.74316487]
[1752522857841,0.0337,119990.0,119980.0,1.03456373]
[1752522858061,2.51489544,120000.0,119990.0,0.53168179]
[1752522858283,2.39346237,120000.0,119990.0,1.0495845]
[1752522858500,2.39346237,120000.0,119990.0,1.1766645]
[1752522858716,2.39346237,120000.0,119990.0,1.0655845]
[1752522858935,1.80579063,120000.0,119990.0,1.20720535]
[1752522859151,1.80579063,120000.0,119990.0,1.10555619]
[1752522859381,1.80579063,120000.0,119990.0,1.23263619]
[1752522859616,1.80579063,120000.0,119990.0,1.21613619]
[1752522859851,1.80579063,120000.0,119990.0,1.64358589]
[1752522860109,1.80579063,120000.0,119990.0,1.21913619]
[1752522860980,1.80579063,120000.0,119990.0,1.22213619]
[1752522861196,1.80579063,120000.0,119990.0,1.21213734]
[1752522862309,1.41848871,120000.0,119990.0,1.21213734]
[1752522862521,1.32248616,120000.0,119990.0,1.22753734]
[1752522862736,1.19019681,120000.0,119990.0,1.22753734]
[1752522862952,0.90433743,120000.0,119990.0,1.22753734]
[1752522863170,0.70789873,120000.0,119990.0,1.22753734]
[1752522864270,0.14018267,120000.0,119990.0,1.2145206]
[1752522864479,0.11375452,120000.0,119990.0,1.5105206]
[1752522864923,0.0022,120010.0,120000.0,0.53166581]
[1752522865133,0.0023536,120010.0,120000.0,1.04851377]
[1752522865346,0.0023536,120010.0,120000.0,1.17856377]
[1752522865556,0.0023536,120010.0,120000.0,1.20890462]
[1752522866657,0.0023536,120010.0,120000.0,1.20990462]
[1752522867069,0.0023536,120010.0,120000.0,1.19410462]
[1752522867288,0.0023536,120010.0,120000.0,1.05102462]
[1752522867508,0.0023536,120010.0,120000.0,0.61601292]
[1752522867950,0.0331536,120010.0,120000.0,0.61601292]
[1752522868170,0.0331536,120010.0,120000.0,0.66174581]
[1752522868668,0.0179536,120010.0,120000.0,0.53463581]
[1752522868880,0.0179536,120010.0,120000.0,0.66171581]
[1752522869101,0.0179536,120010.0,120000.0,0.66271581]
[1752522869317,0.0179536,120010.0,120000.0,0.53563581]
[1752522869529,0.0179536,120010.0,120000.0,0.66279581]
[1752522869755,0.0023536,120010.0,120000.0,0.66279581]
[1752522870415,0.0023536,120010.0,120000.0,0.74414292]
[1752522871252,0.0023536,120010.0,120000.0,0.74230292]
[1752522871694,0.0023536,120010.0,120000.0,0.61514292]
[1752522871903,0.0023536,120010.0,120000.0,0.74250292]
[1752522872121,0.0023536,120010.0,120000.0,0.74456292]
[1752522874494,0.0023536,120010.0,120000.0,0.74460292]
[1752522876171,0.0023536,120010.0,120000.0,0.61720292]
[1752522876586,0.0023536,120010.0,120000.0,0.74456292]
[1752522877424,0.0023536,120010.0,120000.0,0.61720292]
[1752522877621,0.0023536,120010.0,120000.0,0.74452292]
[1752522880208,0.0023536,120010.0,120000.0,0.61720292]
[1752522880421,0.0023536,120010.0,120000.0,0.74452292]
[1752522880866,0.0023536,120010.0,120000.0,0.61720292]
[1752522881121,0.0023536,120010.0,120000.0,0.74448292]
[1752522881785,0.0023536,120010.0,120000.0,0.61720292]
[1752522882002,0.0023536,120010.0,120000.0,0.74456292]
[1752522882881,0.0023536,120010.0,120000.0,0.74246292]
[1752522883100,0.4951358,120010.0,120000.0,0.00933319]
[1752522883310,0.50346836,120010.0,120000.0,0.00933333]
[1752522883545,0.50346836,120010.0,120000.0,0.01766659]
[1752522883777,0.50346836,120010.0,120000.0,0.001]
[1752522883984,0.4951358,120010.0,120000.0,0.00933333]
[1752522884194,0.48680337,120010.0,120000.0,0.1926663]
[1752522884620,0.48680337,120010.0,120000.0,0.20099935]
[1752522885054,0.4951358,120010.0,120000.0,0.1926663]
[1752522885266,0.48680337,120010.0,120000.0,0.1926663]
[1752522885478,0.05925012,120010.0,120000.0,0.20933233]
[1752522885696,0.06758248,120010.0,120000.0,0.16766666]
[1752522885879,0.05925012,120010.0,120000.0,0.17599971]
[1752522886081,0.05925012,120010.0,120000.0,0.17599992]
[1752522886304,0.06758248,120010.0,120000.0,0.18433304]
[1752522886526,0.07591498,120010.0,120000.0,0.18433304]
[1752522886734,0.06758248,120010.0,120000.0,0.18433304]
[1752522886943,0.0759156,120010.0,120000.0,0.00933333]
[1752522887142,0.64512475,120010.0,120000.0,0.001]
[1752522887643,0.77248475,120010.0,120000.0,0.001]
[1752522889364,0.01666694,119990.0,119980.0,0.19169755]
[1752522889571,0.02500062,119990.0,119980.0,0.19169755]
[1752522889780,0.02500055,119990.0,119980.0,0.20328192]
[1752522890005,0.17642561,120000.0,119990.0,0.16668055]
[1752522890220,0.05739887,120000.0,119980.0,0.70384714]
[1752522890434,0.01666687,119990.0,119980.0,0.27629431]
[1752522890646,0.01666687,119990.0,119980.0,0.27835431]
[1752522891058,0.0083334,119990.0,119980.0,0.27835431]
[1752522891281,0.2240663,120000.0,119980.0,0.27835431]
[1752522891504,0.00833354,119990.0,119980.0,0.83326763]
[1752522891694,0.00833347,119990.0,119980.0,0.41404861]
[1752522891950,0.3513863,120000.0,119990.0,0.00833395]
[1752522892175,0.0083334,119990.0,119980.0,0.41400819]
[1752522892384,0.17638631,120000.0,119990.0,0.17501457]
[1752522892850,0.34305297,120000.0,119990.0,0.00833402]
[1752522893707,0.00833347,119990.0,119980.0,0.41194791]
[1752522893959,0.01358672,119990.0,119980.0,0.41400791]
[1752522894363,0.0083334,119990.0,119980.0,0.41400791]
[1752522894615,0.04906589,120000.0,119990.0,0.1750145]
[1752522894834,0.00933284,120000.0,119990.0,0.62962885]
[1752522895050,0.13561284,120000.0,119990.0,0.63287885]
[1752522895280,0.12728,120000.0,119990.0,0.64121273]
[1752522895490,0.00833277,120000.0,119990.0,0.63287878]
[1752522895701,0.02499873,120000.0,119990.0,0.63287885]
[1752522895913,0.02599873,120000.0,119990.0,0.63287885]
[1752522896130,0.02599873,120000.0,119990.0,0.63287892]
[1752522896522,0.02599873,120000.0,119990.0,0.20532567]
[1752522897412,0.02599873,120000.0,119990.0,0.18865824]
[1752522897645,0.02599873,120000.0,119990.0,0.19699192]
[1752522897869,0.02599866,120000.0,119990.0,0.20532553]
[1752522898082,0.02599866,120000.0,119990.0,0.18865824]
[1752522898304,0.02599866,120000.0,119990.0,0.19699199]
[1752522898513,0.03433171,120000.0,119990.0,0.20532567]
[1752522898725,0.04266497,120000.0,119990.0,0.18032443]
[1752522898948,0.20099886,120000.0,119990.0,0.18032457]
[1752522899178,0.20099886,120000.0,119990.0,0.18659852]
[1752522899602,0.20099886,120000.0,119990.0,0.1949324]
[1752522899998,0.20099886,120000.0,119990.0,0.18659852]
[1752522900143,0.20099886,120000.0,119990.0,0.19493233]
[1752522900144,0.0343322,120000.0,119990.0,0.19493233]
[1752522900409,0.02500069,119990.0,119980.0,0.27599494]
[1752522900611,0.04873457,119990.0,119980.0,0.28137938]
[1752522900870,0.00833423,119980.0,119970.0,0.52632387]
[1752522901084,0.0166686,119980.0,119970.0,0.75162104]
[1752522901293,0.0166686,119980.0,119970.0,0.75162111]
[1752522901496,0.00733423,119980.0,119970.0,0.75162111]
[1752522901701,0.01566867,119980.0,119970.0,0.75162111]
[1752522901907,0.04816783,119990.0,119980.0,0.17502916]
[1752522902114,0.18378137,119990.0,119980.0,0.19169825]
[1752522902686,0.17544742,119990.0,119980.0,0.19464825]
[1752522902913,0.17544742,119990.0,119980.0,0.20298269]
[1752522903113,0.15934742,119990.0,119980.0,0.20298269]
[1752522903322,0.16768137,119990.0,119980.0,0.19464825]
[1752522903989,0.16764137,119990.0,119980.0,0.18631374]
[1752522904211,0.35072192,119990.0,119980.0,0.18336381]
[1752522904431,0.17570742,119990.0,119980.0,0.19169825]
[1752522904641,0.17597464,119990.0,119980.0,0.20298262]
[1752522904859,0.17597464,119990.0,119980.0,0.18631381]
[1752522905070,0.18430866,119990.0,119980.0,0.19464839]
[1752522905278,0.16764076,119990.0,119980.0,0.20298276]
[1752522905489,0.17597464,119990.0,119980.0,0.20298276]
[1752522905713,0.16764076,119990.0,119980.0,0.20298283]
[1752522905926,0.15224055,119990.0,119980.0,0.21341706]
[1752522906141,0.14390687,119990.0,119980.0,0.21341706]
[1752522906351,0.14390687,119990.0,119980.0,0.64097031]
[1752522906589,0.15224048,119990.0,119980.0,0.64097031]
[1752522906811,0.14390687,119990.0,119980.0,0.64097031]
[1752522907023,0.1355734,119990.0,119980.0,0.64097031]
[1752522907548,0.14390694,119990.0,119980.0,0.64097031]
[1752522908280,0.01666694,119990.0,119980.0,0.64097031]
[1752522908489,0.1355334,119990.0,119980.0,0.64097031]
[1752522908810,0.14386694,119990.0,119980.0,0.64097031]
[1752522909019,0.01666694,119990.0,119980.0,0.64097031]
[1752522909237,0.02500055,119990.0,119980.0,0.64097038]
[1752522909452,0.03333436,119990.0,119980.0,0.2134172]
[1752522909664,0.02500055,119990.0,119980.0,0.21341678]
[1752522909878,0.02500055,119990.0,119980.0,0.21341636]
[1752522910097,0.1605343,119990.0,119980.0,0.21341636]
[1752522910326,0.15220055,119990.0,119980.0,0.21341636]
[1752522911282,0.1355334,119990.0,119980.0,0.65646961]
[1752522912100,0.0083334,119990.0,119980.0,0.65646961]
[1752522912331,0.01666694,119990.0,119980.0,0.65646961]
[1752522912994,0.01666687,119990.0,119980.0,0.65646961]
[1752522913212,0.01666687,119990.0,119980.0,0.78366961]
[1752522913865,0.16653298,120000.0,119980.0,0.75866622]
[1752522914070,0.15219866,120000.0,119990.0,0.61385129]
[1752522914299,0.16053185,120000.0,119990.0,0.61595136]
[1752522914936,0.15219866,120000.0,119990.0,0.61595136]
[1752522915152,0.16053185,120000.0,119990.0,0.61595136]
[1752522916025,0.15219866,120000.0,119990.0,0.6242849]
[1752522916239,0.15219866,120000.0,119990.0,0.18839811]
[1752522916452,0.16053178,120000.0,119990.0,0.62428497]
[1752522916688,0.02599866,120000.0,119990.0,0.63261851]
[1752522916899,0.15311866,120000.0,119990.0,0.62428497]
[1752522917111,0.16145185,120000.0,119990.0,0.62428497]
[1752522917755,0.15311866,120000.0,119990.0,0.63261851]
[1752522917990,0.16145178,120000.0,119990.0,0.62428497]
[1752522918425,0.16145178,120000.0,119990.0,0.63261851]
[1752522918644,0.16245178,120000.0,119990.0,0.63261851]
[1752522918871,0.0103327,120000.0,119990.0,0.79103851]
[1752522919078,0.01866547,120000.0,119990.0,0.79103851]
[1752522919305,0.0103327,120000.0,119990.0,0.79103851]
[1752522919754,0.00933277,120000.0,119990.0,0.79103851]
[1752522919927,0.00833277,120000.0,119990.0,0.79103851]
[1752522921785,0.01666575,120000.0,119990.0,0.79103851]
[1752522922420,0.00833277,120000.0,119990.0,0.79103851]
[1752522922911,0.19166595,120000.0,119990.0,0.02005]
[1752522923182,0.20001553,119990.0,119980.0,0.08429711]
[1752522923393,0.20001553,119990.0,119970.0,0.66185866]
[1752522923394,0.02500311,119980.0,119970.0,0.66185866]
[1752522923605,0.0250029,119980.0,119970.0,0.7536407]
[1752522923814,0.01666846,119980.0,119970.0,0.7536407]
[1752522924043,0.00833416,119980.0,119970.0,0.7536807]
[1752522924265,0.00833416,119980.0,119970.0,1.06929395]
[1752522924485,0.00833416,119980.0,119970.0,1.19653395]
[1752522924698,0.34208838,119990.0,119970.0,1.19653395]
[1752522924913,0.32598838,119990.0,119980.0,0.17797916]
[1752522925127,0.15097361,119990.0,119980.0,0.19464825]
[1752522925349,0.15224082,119990.0,119980.0,0.19674825]
[1752522925567,0.02500076,119990.0,119980.0,0.63263573]
[1752522925801,0.15232076,119990.0,119980.0,0.63263573]
[1752522926228,0.16065464,119990.0,119980.0,0.63263587]
[1752522926665,0.16065519,119990.0,119980.0,0.62430164]
[1752522926874,0.16065519,119990.0,119980.0,0.63263601]
[1752522927095,0.16065519,119990.0,119980.0,0.62430164]
[1752522927299,0.15232124,119990.0,119980.0,0.63263573]
[1752522927523,0.15232124,119990.0,119980.0,0.21341671]
[1752522928251,0.14398736,119990.0,119980.0,0.21341671]
[1752522928516,0.15232117,119990.0,119980.0,0.21341671]
[1752522928916,0.15232117,119990.0,119980.0,0.20508248]
[1752522929120,0.16065512,119990.0,119980.0,0.20508248]
[1752522929329,0.16065512,119990.0,119980.0,0.20508255]
[1752522929538,0.16065512,119990.0,119980.0,0.21341685]
[1752522929774,0.16065505,119990.0,119980.0,0.20508213]
[1752522929986,0.15232124,119990.0,119980.0,0.18007909]
[1752522930219,0.01666895,119980.0,119970.0,0.00294]
[1752522930442,0.02500471,119970.0,119960.0,0.51166224]
[1752522930734,0.64283213,119970.0,119960.0,0.002]
[1752522930972,0.77015213,119970.0,119960.0,0.002]
[1752522931400,0.77019213,119970.0,119960.0,0.002]
[1752522932483,0.77219213,119970.0,119960.0,0.002]
[1752522932701,0.64483213,119970.0,119960.0,0.002]
[1752522932921,0.77219213,119970.0,119960.0,0.00204]
[1752522933137,0.89723899,119970.0,119960.0,0.00204]
[1752522933570,0.92290499,119970.0,119960.0,0.00204]
[1752522933779,0.87920524,119970.0,119960.0,0.00204]
[1752522935368,0.87916524,119970.0,119960.0,0.00204]
[1752522935569,0.77315213,119970.0,119960.0,0.00204]
[1752522936673,0.34559888,119970.0,119960.0,0.00204]
[1752522937119,0.77315213,119970.0,119960.0,0.00204]
[1752522937554,1.17315213,119970.0,119960.0,0.00204]
[1752522937996,0.87954785,119970.0,119960.0,0.00204]
[1752522938679,1.27954785,119970.0,119960.0,0.00204]
[1752522939104,0.87954785,119970.0,119960.0,0.00204]
[1752522939342,0.4519946,119970.0,119960.0,0.00204]
[1752522939567,1.27954785,119970.0,119960.0,0.00204]
[1752522941926,1.60113844,119970.0,119960.0,0.00204]
[1752522942124,1.72837844,119970.0,119960.0,0.00204]
[1752522942645,1.74291929,119970.0,119960.0,0.00204]
[1752522943300,1.31536604,119970.0,119960.0,0.00204]
[1752522943533,1.31536604,119970.0,119960.0,0.00092]
[1752522943754,1.1068087,119970.0,119960.0,0.00092]
[1752522943964,1.2340087,119970.0,119960.0,0.00092]
[1752522944814,1.1068087,119970.0,119960.0,0.00092]
[1752522945029,1.2340087,119970.0,119960.0,0.00092]
[1752522946104,1.1068087,119970.0,119960.0,0.00092]
[1752522946285,1.2340087,119970.0,119960.0,0.00092]
[1752522946969,1.2339687,119970.0,119960.0,0.00092]
[1752522948789,1.74232023,119970.0,119960.0,0.00092]
[1752522949004,1.31476698,119970.0,119960.0,0.00092]
[1752522949213,1.31480698,119970.0,119960.0,0.00092]
[1752522950465,1.2340087,119970.0,119960.0,0.00092]
[1752522953021,1.1068087,119970.0,119960.0,0.00092]
[1752522953270,1.2339687,119970.0,119960.0,0.00092]
[1752522953932,1.53436195,119970.0,119960.0,0.00092]
[1752522954139,1.53436195,119970.0,119960.0,1e-08]
[1752522954140,1.56892458,119970.0,119960.0,1e-08]
[1752522954349,1.72300643,119970.0,119960.0,1e-08]
[1752522954568,1.80432377,119970.0,119960.0,1e-08]
[1752522954781,1.76676114,119970.0,119960.0,1e-08]
[1752522955000,1.73983929,119970.0,119960.0,1e-08]
[1752522955221,1.74583929,119970.0,119960.0,1e-08]
[1752522955565,1.74383929,119970.0,119960.0,1e-08]
[1752522955785,1.74583929,119970.0,119960.0,1e-08]
[1752522956418,1.74183929,119970.0,119960.0,1e-08]
[1752522957029,1.74583929,119970.0,119960.0,1e-08]
[1752522958730,1.74583929,119970.0,119960.0,0.00090001]
[1752522958947,0.1750874,119940.0,119930.0,0.03289201]
[1752522959165,0.1750874,119940.0,119930.0,0.03490201]
[1752522959166,0.72988065,119940.0,119930.0,0.03490201]
[1752522959592,0.3023274,119940.0,119930.0,0.03490201]
[1752522959812,0.72988065,119940.0,119930.0,0.03490201]
[1752522961829,0.8929051,119940.0,119930.0,0.00239201]
[1752522962029,0.17510199,119930.0,119920.0,0.02006]
[1752522962237,0.73021524,119930.0,119920.0,0.02006]
[1752522962476,0.88983067,119930.0,119920.0,0.00496]
[1752522962698,1.7402213,119930.0,119920.0,1e-08]
[1752522962948,2.17478393,119930.0,119920.0,1e-08]
[1752522963618,1.31967743,119930.0,119920.0,1e-08]
[1752522963986,1.32467743,119930.0,119920.0,1e-08]
[1752522964199,0.52347044,119910.0,119900.0,0.003]
[1752522964411,0.52347044,119910.0,119900.0,0.00308539]
[1752522964412,0.78788075,119910.0,119900.0,0.00308539]
[1752522964627,1.215434,119910.0,119900.0,0.00308539]
[1752522965070,1.088154,119910.0,119900.0,0.00308539]
[1752522965250,0.63030075,119910.0,119900.0,0.00604539]
[1752522965459,0.41722075,119910.0,119900.0,0.02321539]
[1752522965868,0.41722075,119910.0,119900.0,0.03931539]
[1752522966075,0.41922075,119910.0,119900.0,0.03931539]
[1752522966311,1.251854,119910.0,119900.0,0.04031539]
[1752522966512,1.124494,119910.0,119900.0,0.04031539]
[1752522966758,0.82426075,119910.0,119900.0,0.04031539]
[1752522966961,1.251814,119910.0,119900.0,0.04031539]
[1752522967192,1.251814,119910.0,119900.0,0.02421539]
[1752522967426,1.32849134,119910.0,119900.0,0.02321539]
[1752522967683,1.32649134,119910.0,119900.0,0.02321539]
[1752522967886,1.32849134,119910.0,119900.0,0.02321539]
[1752522968143,1.32849134,119910.0,119900.0,0.00801539]
[1752522968357,1.33249134,119910.0,119900.0,0.00308539]
[1752522968572,1.36289134,119910.0,119900.0,0.00308539]
[1752522968757,0.96289134,119910.0,119900.0,0.00308539]
[1752522969022,0.94769134,119910.0,119900.0,0.00308539]
[1752522970884,0.96379134,119910.0,119900.0,0.00308539]
[1752522971088,0.94769134,119910.0,119900.0,0.00308539]
[1752522972707,0.851254,119910.0,119900.0,0.00604539]
[1752522972928,0.850894,119910.0,119900.0,0.03831539]
[1752522973141,0.42334075,119910.0,119900.0,0.03831539]
[1752522973808,0.850894,119910.0,119900.0,0.03831539]
[1752522976648,0.851254,119910.0,119900.0,0.02301539]
[1752522978916,0.89696441,119910.0,119900.0,0.02301539]
[1752522979176,0.851254,119910.0,119900.0,0.02301539]
[1752522981795,0.851254,119910.0,119900.0,0.01808539]
[1752522982022,0.851254,119910.0,119900.0,0.02104539]
[1752522982232,0.851254,119910.0,119900.0,0.01808539]
[1752522982658,0.883054,119910.0,119900.0,0.00308539]
[1752522982904,0.96459134,119910.0,119900.0,0.00308539]
[1752522983361,0.53703809,119910.0,119900.0,0.00308539]
[1752522983568,0.96437134,119910.0,119900.0,0.00308539]
[1752522985098,0.82087134,119910.0,119900.0,0.00308539]
[1752522985313,0.93321134,119910.0,119900.0,0.00308539]
[1752522986139,0.50565809,119910.0,119900.0,0.00308539]
[1752522986340,0.93321134,119910.0,119900.0,0.00308539]
[1752522988372,0.42398075,119910.0,119900.0,0.03921539]
[1752522989010,0.851534,119910.0,119900.0,0.03921539]
[1752522989481,0.851894,119910.0,119900.0,0.00308539]
[1752522989920,0.851894,119910.0,119900.0,0.00609539]
[1752522990132,0.851894,119910.0,119900.0,0.00308539]
[1752522990355,0.94871134,119910.0,119900.0,0.00308539]
[1752522990609,0.87930572,119910.0,119900.0,0.00308539]
[1752522992584,0.87930572,119910.0,119900.0,0.00398539]
[1752522993641,1.23406657,119910.0,119900.0,0.00398539]
[1752522994559,1.23406657,119910.0,119900.0,1e-08]
[1752522996826,1.23206657,119910.0,119900.0,1e-08]
[1752522997041,1.30938391,119910.0,119900.0,1e-08]
[1752522997274,1.31338391,119910.0,119900.0,1e-08]
[1752522997496,0.88783066,119910.0,119900.0,1e-08]
[1752522997937,0.88583066,119910.0,119900.0,1e-08]
[1752522998359,0.88883066,119910.0,119900.0,1e-08]
[1752522999233,0.76079066,119910.0,119900.0,1e-08]
[1752522999441,0.88887066,119910.0,119900.0,1e-08]
[1752523001862,0.92343329,119910.0,119900.0,1e-08]
[1752523003939,0.93943329,119910.0,119900.0,1e-08]
[1752523005465,0.93943329,119910.0,119900.0,4.001e-05]
[1752523005685,0.93943329,119910.0,119900.0,1e-08]
[1752523006118,1.02713329,119910.0,119900.0,1e-08]
[1752523006370,0.93943329,119910.0,119900.0,1e-08]
[1752523006592,1.33242391,119910.0,119900.0,1e-08]
[1752523006814,1.33246391,119910.0,119900.0,1e-08]
[1752523007026,1.20412391,119910.0,119900.0,1e-08]
[1752523007501,0.9510543,119890.0,119880.0,0.03661]
[1752523007710,1.16056141,119890.0,119880.0,0.03866]
[1752523007922,1.16056141,119890.0,119880.0,0.03565]
[1752523007923,1.03240141,119890.0,119880.0,0.03565]
[1752523008140,1.16052141,119890.0,119880.0,0.03565]
[1752523008361,1.16052141,119890.0,119880.0,0.03866]
[1752523008823,1.03440141,119890.0,119880.0,0.03866]
[1752523009048,1.16252141,119890.0,119880.0,0.03866]
[1752523009529,1.16352141,119890.0,119880.0,0.03866]
[1752523010506,1.03540141,119890.0,119880.0,0.03866]
[1752523010722,1.16352141,119890.0,119880.0,0.03866]
[1752523011142,1.21325877,119890.0,119880.0,0.03866]
[1752523011984,1.08513877,119890.0,119880.0,0.03866]
[1752523012189,1.21325877,119890.0,119880.0,0.03866]
[1752523012400,1.08513877,119890.0,119880.0,0.03866]
[1752523012819,0.60784816,119890.0,119880.0,0.03866]
[1752523013027,0.73592816,119890.0,119880.0,0.03866]
[1752523013237,0.60784816,119890.0,119880.0,0.03866]
[1752523013444,1.03540141,119890.0,119880.0,0.03866]
[1752523013658,1.16348141,119890.0,119880.0,0.03866]
[1752523015587,1.24479875,119890.0,119880.0,0.03866]
[1752523017207,1.16348141,119890.0,119880.0,0.03866]
[1752523017624,1.16340141,119890.0,119880.0,0.03866]
[1752523019374,0.73580816,119890.0,119880.0,0.03866]
[1752523019583,1.16336141,119890.0,119880.0,0.03866]
[1752523020696,1.03540141,119890.0,119880.0,0.03866]
[1752523020928,1.16336141,119890.0,119880.0,0.03866]
[1752523023580,0.73580816,119890.0,119880.0,0.03866]
[1752523023798,1.16336141,119890.0,119880.0,0.03866]
[1752523024645,1.24467875,119890.0,119880.0,0.03866]
[1752523026160,1.16336141,119890.0,119880.0,0.03866]
[1752523027419,1.16336141,119890.0,119880.0,0.03956]
[1752523028218,0.73580816,119890.0,119880.0,0.03956]
[1752523028641,0.60784816,119890.0,119880.0,0.03956]
[1752523028850,0.18650105,119890.0,119880.0,0.46711325]
[1752523029168,0.31438105,119890.0,119880.0,0.03956]
[1752523030634,0.39569839,119890.0,119880.0,0.03956]
[1752523031135,0.31438105,119890.0,119880.0,0.03956]
[1752523032567,0.71438105,119890.0,119880.0,0.03956]
[1752523038384,0.18650105,119890.0,119880.0,0.03956]
[1752523038598,0.7420943,119890.0,119880.0,0.03956]
[1752523038809,0.82344141,119890.0,119880.0,0.0033]
[1752523039020,0.90475875,119890.0,119880.0,0.0033]
[1752523039222,0.93525875,119890.0,119880.0,0.0033]
[1752523039434,0.91995875,119890.0,119880.0,0.0033]
[1752523040508,0.90475875,119890.0,119880.0,0.0033]
[1752523040730,0.82344141,119890.0,119880.0,0.00645]
[1752523040936,0.39600816,119890.0,119880.0,0.03903]
[1752523041168,0.39564816,119890.0,119880.0,0.03903]
[1752523041834,0.82320141,119890.0,119880.0,0.03903]
[1752523042262,0.82356141,119890.0,119880.0,0.02383]
[1752523044050,0.39600816,119890.0,119880.0,0.02383]
[1752523044267,0.82356141,119890.0,119880.0,0.02383]
[1752523045308,0.39600816,119890.0,119880.0,0.02383]
[1752523045562,0.82356141,119890.0,119880.0,0.02383]
[1752523047188,0.82320141,119890.0,119880.0,0.03903]
[1752523050623,0.82356141,119890.0,119880.0,0.02383]
[1752523050842,0.90487875,119890.0,119880.0,0.0033]
[1752523051068,0.93597875,119890.0,119880.0,0.0033]
[1752523053284,0.93597875,119890.0,119860.0,0.0177]
[1752523053285,0.51518964,119870.0,119860.0,0.0177]
[1752523053494,1.18475,119870.0,119860.0,0.0024]
[1752523053699,1.26606734,119870.0,119860.0,1e-08]
[1752523053909,1.30775032,119870.0,119860.0,1e-08]
[1752523054119,0.1752335,119840.0,119830.0,0.03464]
[1752523054374,0.17524812,119830.0,119820.0,0.00504]
[1752523054585,0.81226848,119830.0,119820.0,0.002]
[1752523054807,1.15226848,119830.0,119820.0,0.002]
[1752523055075,0.18362357,119810.0,119800.0,0.11538759]
[1752523055304,0.31138357,119810.0,119800.0,0.11742759]
[1752523056795,0.31138357,119810.0,119800.0,0.10439112]
[1752523057021,0.31138357,119810.0,119800.0,0.03868]
[1752523057439,0.82025416,119810.0,119800.0,0.03868]
[1752523057652,0.82125416,119810.0,119800.0,0.04068]
[1752523057862,0.31238357,119810.0,119800.0,0.04068]
[1752523058068,0.71238357,119810.0,119800.0,0.04068]
[1752523059325,0.58462357,119810.0,119800.0,0.46823325]
[1752523059546,0.71234357,119810.0,119800.0,0.04068]
[1752523059967,0.74580565,119810.0,119800.0,0.04068]
[1752523060606,0.74580565,119810.0,119800.0,0.04158]
[1752523062400,0.74576565,119810.0,119800.0,0.46913325]
[1752523062712,0.74576565,119810.0,119800.0,0.04158]
[1752523063722,1.1733189,119810.0,119800.0,0.02528]
[1752523064740,0.85502601,119810.0,119800.0,0.0049]
[1752523065058,0.93634335,119810.0,119800.0,0.0049]
[1752523065377,0.93634335,119810.0,119800.0,0.00794]
[1752523065862,0.93634335,119810.0,119800.0,0.0049]
[1752523068049,0.85502601,119810.0,119800.0,0.0049]
[1752523068313,0.72734601,119810.0,119800.0,0.00694]
[1752523068523,0.29943276,119810.0,119800.0,0.02608]
[1752523068759,0.34576565,119810.0,119800.0,0.46903325]
[1752523068979,0.68576565,119810.0,119800.0,0.04148]
[1752523069634,1.08576565,119810.0,119800.0,0.04148]
[1752523070727,0.74576565,119810.0,119800.0,0.04148]
[1752523073843,0.82586979,119810.0,119800.0,0.04148]
[1752523074067,1.27513015,119810.0,119800.0,0.0049]
[1752523074515,1.30573015,119810.0,119800.0,0.0049]
[1752523075365,1.29053015,119810.0,119800.0,0.0049]
[1752523078206,1.7344034,119810.0,119800.0,0.0049]
[1752523078448,1.30685015,119810.0,119800.0,0.0049]
[1752523080089,1.30585015,119810.0,119800.0,0.0029]
[1752523080293,1.30685015,119810.0,119800.0,0.0029]
[1752523080946,1.30885015,119810.0,119800.0,0.0039]
[1752523081154,1.21242601,119810.0,119800.0,0.0039]
[1752523081566,0.78487276,119810.0,119800.0,0.0039]
[1752523081786,1.21242601,119810.0,119800.0,0.0039]
[1752523082686,1.21342601,119810.0,119800.0,0.0039]
[1752523083095,1.21242601,119810.0,119800.0,0.0039]
[1752523083294,1.27531798,119810.0,119800.0,0.0039]
[1752523083546,1.27731798,119810.0,119800.0,0.0039]
[1752523083760,1.21442601,119810.0,119800.0,0.0039]
[1752523084623,1.19902601,119810.0,119800.0,0.0039]
[1752523085498,1.21472601,119810.0,119800.0,0.0039]
[1752523085720,1.19902601,119810.0,119800.0,0.0039]
[1752523086794,1.27891189,119810.0,119800.0,0.0039]
[1752523087311,0.77147276,119810.0,119800.0,0.0039]
[1752523087521,1.19902601,119810.0,119800.0,0.0039]
[1752523088365,0.77147276,119810.0,119800.0,0.0039]
[1752523088573,1.19902601,119810.0,119800.0,0.0039]
[1752523094142,0.77147276,119810.0,119800.0,0.0039]
[1752523094363,1.19902601,119810.0,119800.0,0.0039]
[1752523096299,1.20836149,119810.0,119800.0,0.0039]
[1752523098521,1.08068149,119810.0,119800.0,0.0039]
[1752523098678,1.20820149,119810.0,119800.0,0.0039]
[1752523100480,1.19850601,119810.0,119800.0,0.03991]
[1752523101499,1.07098601,119810.0,119800.0,0.03991]
[1752523101702,0.43095276,119810.0,119800.0,0.03991]
[1752523101846,0.34960565,119810.0,119800.0,0.03991]
[1752523102053,0.34960565,119810.0,119800.0,0.46746325]
[1752523102250,0.34960565,119810.0,119800.0,0.03991]
[1752523105438,0.22208565,119810.0,119800.0,0.03991]
[1752523105658,0.7771589,119810.0,119800.0,0.03991]
[1752523108073,0.34960565,119810.0,119800.0,0.03991]
[1752523108290,0.22208565,119810.0,119800.0,0.03991]
[1752523108501,0.7771589,119810.0,119800.0,0.03991]
[1752523109567,1.1771589,119810.0,119800.0,0.03991]
[1752523109985,0.74960565,119810.0,119800.0,0.03991]
[1752523110232,1.1771589,119810.0,119800.0,0.03991]
[1752523110451,1.20786845,119810.0,119800.0,0.03991]
[1752523111751,1.1771589,119810.0,119800.0,0.03991]
[1752523112823,0.74956565,119810.0,119800.0,0.03991]
[1752523113068,0.34956565,119810.0,119800.0,0.03991]
[1752523113705,0.22208565,119810.0,119800.0,0.46746325]
[1752523113925,0.34960565,119810.0,119800.0,0.46746325]
[1752523114176,0.34960565,119810.0,119800.0,0.03991]
[1752523115245,0.34964565,119810.0,119800.0,0.03991]
[1752523119520,0.04680828,119810.0,119800.0,0.63440815]
[1752523119744,0.04680828,119810.0,119800.0,1.07030857]
[1752523119745,0.31141236,119810.0,119800.0,1.07030857]
[1752523119970,0.31975856,119810.0,119800.0,0.64275532]
[1752523120440,0.31975856,119810.0,119800.0,0.65110235]
[1752523120687,0.31110357,119810.0,119800.0,0.65010235]
[1752523120912,0.17627737,119810.0,119800.0,0.63640815]
[1752523121148,0.32044997,119810.0,119800.0,0.47781049]